fUST/lending_fUST_20250528
["ID","MTS","AMOUNT","RATE_DAILY","PERIOD"]
[362716871,1748405446964,-427.36386067,0.00016099,2]
[362716872,1748405446974,-500.0,0.00016099,2]
[362716873,1748405446985,-500.0,0.00016099,2]
[362716874,1748405446995,-500.0,0.00016099,2]
[362716875,1748405447006,-200.03078772,0.00016099,2]
[362716876,1748405447017,-4586.00263553,0.000161,2]
[362716877,1748405447027,-500.0,0.00016438,2]
[362716878,1748405447039,-500.0,0.00016438,2]
[362716879,1748405447048,-500.0,0.00016438,2]
[362716880,1748405447059,-500.0,0.00016438,2]
[362716881,1748405447069,-500.0,0.00016438,2]
[362716882,1748405447080,-379.32387243,0.00016438,2]
[362716883,1748405447091,-500.0,0.00016438,2]
[362716884,1748405447100,-449.28188931,0.00016438,2]
[362716885,1748405447201,-50.71811069,0.00016438,2]
[362716886,1748405447210,-500.0,0.00016438,2]
[362716887,1748405447220,-480.34854167,0.00016438,2]
[362716888,1748405447230,-7293.16582704,0.00016729,2]
[362716890,1748405542175,-1553.452147,0.00015633,2]
[362716891,1748405542198,-5000.0,0.00015938,2]
[362716892,1748405542223,-300.0,0.00016098,2]
[362716893,1748405542246,-500.0,0.00016099,2]
[362716894,1748405542268,-500.0,0.00016099,2]
[362716895,1748405542291,-500.0,0.00016099,2]
[362716896,1748405542319,-831.24193171,0.00016099,2]
[362716897,1748405542342,-500.0,0.00016099,2]
[362716898,1748405542365,-500.0,0.00016099,2]
[362716899,1748405542388,-831.24193171,0.00016099,2]
[362716900,1748405542410,-500.0,0.00016099,2]
[362716901,1748405542432,-500.0,0.00016099,2]
[362716902,1748405542454,-500.0,0.00016099,2]
[362716903,1748405542476,-831.24193171,0.00016099,2]
[362716904,1748405542497,-500.0,0.00016099,2]
[362716905,1748405542519,-500.0,0.00016099,2]
[362716906,1748405542539,-500.0,0.00016099,2]
[362716907,1748405542561,-831.24193171,0.00016099,2]
[362716908,1748405542583,-500.0,0.00016099,2]
[362716909,1748405542605,-500.0,0.00016099,2]
[362716910,1748405542625,-500.0,0.00016099,2]
[362716911,1748405542648,-831.24193171,0.00016099,2]
[362716912,1748405542670,-500.0,0.00016099,2]
[362716913,1748405542693,-500.0,0.00016099,2]
[362716914,1748405542713,-500.0,0.00016099,2]
[362716915,1748405542735,-831.24193171,0.00016099,2]
[362716916,1748405542756,-500.0,0.00016099,2]
[362716917,1748405542777,-500.0,0.00016099,2]
[362716918,1748405542801,-831.24193171,0.00016099,2]
[362716919,1748405542824,-500.0,0.00016099,2]
[362716920,1748405542845,-500.0,0.00016099,2]
[362716921,1748405542867,-500.0,0.00016099,2]
[362716922,1748405542890,-831.24193171,0.00016099,2]
[362716923,1748405542914,-500.0,0.00016099,2]
[362716924,1748405542938,-500.0,0.00016099,2]
[362716925,1748405542960,-831.24193171,0.00016099,2]
[362716926,1748405542982,-500.0,0.00016099,2]
[362716927,1748405543004,-307.22601034,0.00016099,2]
[362716928,1748405543029,-831.24193171,0.00016099,2]
[362716929,1748405543055,-500.0,0.00016099,2]
[362716930,1748405543079,-500.0,0.00016099,2]
[362716931,1748405543103,-831.24193171,0.00016099,2]
[362716932,1748405543125,-500.0,0.00016099,2]
[362716933,1748405543149,-831.24193171,0.00016099,2]
[362716934,1748405543171,-500.0,0.00016099,2]
[362716935,1748405543194,-500.0,0.00016099,2]
[362716936,1748405543216,-831.24193171,0.00016099,2]
[362716937,1748405543240,-500.0,0.00016099,2]
[362716938,1748405543264,-831.24193171,0.00016099,2]
[362716939,1748405543288,-500.0,0.00016099,2]
[362716940,1748405543314,-831.24193171,0.00016099,2]
[362716941,1748405543336,-500.0,0.00016099,2]
[362716942,1748405543360,-831.24193171,0.00016099,2]
[362716943,1748405543384,-500.0,0.00016099,2]
[362716944,1748405543407,-831.24193171,0.00016099,2]
[362716945,1748405543434,-831.24193171,0.00016099,2]
[362716946,1748405543456,-500.0,0.00016099,2]
[362716947,1748405543479,-831.24193171,0.00016099,2]
[362716948,1748405543501,-267.06218398,0.00016099,2]
[362716949,1748405543524,-500.0,0.00016099,2]
[362716950,1748405543548,-831.24193171,0.00016099,2]
[362716951,1748405543570,-500.0,0.00016099,2]
[362716952,1748405543592,-831.24193171,0.00016099,2]
[362716953,1748405543614,-500.0,0.00016099,2]
[362716954,1748405543636,-500.0,0.00016099,2]
[362716955,1748405543671,-831.24193171,0.00016099,2]
[362716956,1748405543703,-500.0,0.00016099,2]
[362716957,1748405543725,-500.0,0.00016099,2]
[362716958,1748405543749,-831.24193171,0.00016099,2]
[362716959,1748405543772,-500.0,0.00016099,2]
[362716960,1748405543796,-831.24193171,0.00016099,2]
[362716961,1748405543818,-831.24193171,0.00016099,2]
[362716962,1748405543840,-500.0,0.00016099,2]
[362716963,1748405543994,-831.24193171,0.00016099,2]
[362716964,1748405544032,-500.0,0.00016099,2]
[362716965,1748405544066,-831.24193171,0.00016099,2]
[362716966,1748405544095,-500.0,0.00016099,2]
[362716967,1748405544123,-831.24193171,0.00016099,2]
[362716968,1748405544149,-500.0,0.00016099,2]
[362716969,1748405544174,-831.24193171,0.00016099,2]
[362716970,1748405544197,-500.0,0.00016099,2]
[362716971,1748405544221,-831.24193171,0.00016099,2]
[362716972,1748405544245,-500.0,0.00016099,2]
[362716973,1748405544270,-831.24193171,0.00016099,2]
[362716974,1748405544297,-831.24193171,0.00016099,2]
[362716975,1748405544323,-500.0,0.00016099,2]
[362716976,1748405544349,-831.24193171,0.00016099,2]
[362716977,1748405544374,-500.0,0.00016099,2]
[362716978,1748405544400,-500.0,0.00016099,2]
[362716979,1748405544425,-831.24193171,0.00016099,2]
[362716980,1748405544449,-500.0,0.00016099,2]
[362716981,1748405544474,-831.24193171,0.00016099,2]
[362716982,1748405544498,-500.0,0.00016099,2]
[362716983,1748405544521,-500.0,0.00016099,2]
[362716984,1748405544545,-831.24193171,0.00016099,2]
[362716985,1748405544569,-500.0,0.00016099,2]
[362716986,1748405544592,-831.24193171,0.00016099,2]
[362716987,1748405544616,-831.24193171,0.00016099,2]
[362716988,1748405544640,-500.0,0.00016099,2]
[362716989,1748405544664,-831.24193171,0.00016099,2]
[362716990,1748405544687,-500.0,0.00016099,2]
[362716991,1748405544710,-831.24193171,0.00016099,2]
[362716992,1748405544732,-500.0,0.00016099,2]
[362716993,1748405544758,-831.24193171,0.00016099,2]
[362716994,1748405544782,-500.0,0.00016099,2]
[362716995,1748405544807,-831.24193171,0.00016099,2]
[362716996,1748405544829,-500.0,0.00016099,2]
[362716997,1748405544855,-831.24193171,0.00016099,2]
[362716998,1748405544880,-831.24193171,0.00016099,2]
[362716999,1748405544905,-500.0,0.00016099,2]
[362717000,1748405544932,-831.24193171,0.00016099,2]
[362717001,1748405544957,-500.0,0.00016099,2]
[362717002,1748405544981,-831.24193171,0.00016099,2]
[362717003,1748405545005,-831.24193171,0.00016099,2]
[362717004,1748405545028,-500.0,0.00016099,2]
[362717005,1748405545052,-831.24193171,0.00016099,2]
[362717006,1748405545076,-500.0,0.00016099,2]
[362717007,1748405545099,-500.0,0.00016099,2]
[362717008,1748405545123,-831.24193171,0.00016099,2]
[362717009,1748405545149,-500.0,0.00016099,2]
[362717010,1748405545172,-831.24193171,0.00016099,2]
[362717011,1748405545195,-500.0,0.00016099,2]
[362717012,1748405545219,-831.24193171,0.00016099,2]
[362717013,1748405545241,-831.24193171,0.00016099,2]
[362717014,1748405545263,-500.0,0.00016099,2]
[362717015,1748405545288,-831.24193171,0.00016099,2]
[362717016,1748405545316,-500.0,0.00016099,2]
[362717017,1748405545340,-831.24193171,0.00016099,2]
[362717018,1748405545362,-500.0,0.00016099,2]
[362717019,1748405545386,-831.24193171,0.00016099,2]
[362717020,1748405545410,-831.24193171,0.00016099,2]
[362717021,1748405545432,-500.0,0.00016099,2]
[362717022,1748405545456,-831.24193171,0.00016099,2]
[362717023,1748405545480,-831.24193171,0.00016099,2]
[362717024,1748405545503,-500.0,0.00016099,2]
[362717025,1748405545525,-831.24193171,0.00016099,2]
[362717026,1748405545549,-831.24193171,0.00016099,2]
[362717027,1748405545572,-185.1344815,0.00016099,2]
[362717028,1748405545596,-831.24193171,0.00016099,2]
[362717029,1748405545619,-500.0,0.00016099,2]
[362717030,1748405545642,-831.24193171,0.00016099,2]
[362717031,1748405545665,-831.24193171,0.00016099,2]
[362717032,1748405545690,-831.24193171,0.00016099,2]
[362717033,1748405545713,-831.24193171,0.00016099,2]
[362717034,1748405545736,-831.24193171,0.00016099,2]
[362717035,1748405545759,-831.24193171,0.00016099,2]
[362717036,1748405545781,-831.24193171,0.00016099,2]
[362717037,1748405545804,-831.24193171,0.00016099,2]
[362717038,1748405545827,-831.24193171,0.00016099,2]
[362717039,1748405545851,-831.24193171,0.00016099,2]
[362717040,1748405545873,-831.24193171,0.00016099,2]
[362717041,1748405545896,-775.82580293,0.00016099,2]
[362717042,1748405545919,-775.82580293,0.00016099,2]
[362717043,1748405545943,-775.82580293,0.00016099,2]
[362717044,1748405545967,-775.82580293,0.00016099,2]
[362717045,1748405545989,-775.82580293,0.00016099,2]
[362717046,1748405546012,-775.82580293,0.00016099,2]
[362717047,1748405546034,-389.75127648,0.00016099,2]
[362717048,1748405555033,-218.79345675,0.00015838,2]
[362717049,1748405555058,-148.58863581,0.00016099,2]
[362717051,1748405609233,-206.0358576,0.00015611,2]
[362717052,1748405609255,-414.9641424,0.00015849,2]
[362717053,1748405655409,-249.52869692,0.00015098,2]
[362717054,1748405661095,-224.536575,0.00015098,2]
[362717055,1748405664318,-524.0,0.00015098,2]
[362717056,1748405666368,-153.10776738,0.00015098,2]
[362717057,1748405670149,-279.969293,0.00015,2]
[362717058,1748405673440,-316.704807,0.00015,2]
[362717059,1748405675454,-14037.0,0.00015,2]
[362717060,1748405675675,-0.77979947,0.00015,2]
[362717061,1748405698228,-151.22020053,0.00015,3]
[362717062,1748405700823,-161.78481334,0.00015,3]
[362717063,1748405704201,-162.22030046,0.00014999,2]
[362717064,1748405707318,-137.77969954,0.00014999,2]
[362717065,1748405707343,-101.41080523,0.00014999,2]
[362717066,1748405710198,-198.58919477,0.00014999,2]
[362717067,1748405710223,-16.65635195,0.00014999,2]
[362717068,1748405713872,-152.61107437,0.00014999,2]
[362717069,1748405715576,-130.73257368,0.00014999,2]
[362717070,1748405715603,-68.74030046,0.00014999,2]
[362717071,1748405717571,-177.38913363,0.00014999,2]
[362717072,1748405719789,-53.87056591,0.00014999,2]
[362717073,1748405719813,-132.11881237,0.00014999,2]
[362717074,1748405722507,-167.88118763,0.00014999,2]
[362717075,1748405722529,-75.33488699,0.00014999,2]
[362717076,1748405724201,-152.0,0.00014999,2]
[362717077,1748405725741,-212.0045471,0.000149,2]
[362717078,1748405729638,-152.0,0.000149,2]
[362717079,1748405733218,-152.0,0.000149,2]
[362717080,1748405738746,-208.71843324,0.00014751,2]
[362717081,1748405741680,-155.15591869,0.00014751,2]
[362717082,1748405743560,-4636.12564807,0.00014751,2]
[362717083,1748405743583,-7.9954529,0.000149,2]
[362717084,1748405743606,-972.66511301,0.00014999,2]
[362717085,1748405743629,-300.0,0.00014999,2]
[362717086,1748405743650,-29200.21378602,0.00015,3]
[362717087,1748405797123,-273.52668646,0.00014539,2]
[362717088,1748405799803,-226.32448937,0.00014539,2]
[362717089,1748405802577,-257.10585127,0.00014539,2]
[362717090,1748405802603,-23.83671846,0.00014999,2]
[362717091,1748405828240,-201.70297699,0.00014999,2]
[362717092,1748405836319,-98.29702301,0.00014999,2]
[362717093,1748405836342,-2021.70297699,0.00015,3]
[362717094,1748405939207,-158.12415215,0.00014849,2]
[362717095,1748405942649,-314.84882443,0.00014849,2]
[362717096,1748405944929,-212.51539187,0.00014849,2]
[362717097,1748405947924,-273.52668646,0.00014849,2]
[362717098,1748405950216,-227.76910201,0.00014849,2]
[362717099,1748405952309,-154.07436628,0.00014849,2]
[362717100,1748405954926,-233.52,0.00014849,2]
[362717101,1748405956367,-285.15117557,0.00014849,2]
[362717102,1748405958421,-205.46166963,0.00014849,2]
[362717103,1748405961608,-192.74847749,0.00014849,2]
[362717104,1748405963744,-154.39425402,0.00014849,2]
[362717105,1748405965876,-157.56091234,0.00014849,2]
[362717106,1748405967923,-152.69,0.00014849,2]
[362717107,1748405968570,-2277.61498775,0.00014849,2]
[362717108,1748405968597,-300.0,0.00014999,2]
[362717109,1748405968619,-11673.78598647,0.00015,3]
[362717110,1748405968641,-297.61578343,0.00015206,2]
[362717111,1748405968663,-584.37078786,0.00015206,2]
[362717112,1748405968685,-380.81820674,0.00015206,2]
[362717113,1748405968707,-500.0,0.00015206,2]
[362717114,1748405968728,-171.23449552,0.00015206,2]
[362717115,1748405968750,-164.91529568,0.00015206,2]
[362717116,1748405968773,-500.0,0.00015206,2]
[362717117,1748405968794,-500.0,0.00015206,2]
[362717118,1748405968816,-542.91010724,0.00015206,2]
[362717119,1748405968839,-500.0,0.00015206,2]
[362717120,1748405968861,-500.0,0.00015206,2]
[362717121,1748405968883,-509.83161508,0.00015206,2]
[362717122,1748405968907,-500.0,0.00015206,2]
[362717123,1748405968931,-500.0,0.00015206,2]
[362717124,1748405968954,-500.0,0.00015206,2]
[362717125,1748405968978,-500.0,0.00015206,2]
[362717126,1748405969000,-500.0,0.00015206,2]
[362717127,1748405969022,-500.0,0.00015206,2]
[362717128,1748405969045,-500.0,0.00015206,2]
[362717129,1748405969069,-500.0,0.00015206,2]
[362717130,1748405969091,-500.0,0.00015206,2]
[362717131,1748405969114,-500.0,0.00015206,2]
[362717132,1748405969136,-500.0,0.00015206,2]
[362717133,1748405969158,-500.0,0.00015206,2]
[362717134,1748405969181,-500.0,0.00015206,2]
[362717135,1748405969204,-500.0,0.00015206,2]
[362717136,1748405969230,-500.0,0.00015206,2]
[362717137,1748405969254,-500.0,0.00015206,2]
[362717138,1748405969276,-560.27420656,0.00015206,2]
[362717139,1748405969299,-500.0,0.00015206,2]
[362717140,1748405969322,-500.0,0.00015206,2]
[362717141,1748405969345,-500.0,0.00015206,2]
[362717142,1748405969369,-500.0,0.00015206,2]
[362717143,1748405969393,-500.0,0.00015206,2]
[362717144,1748405969417,-500.0,0.00015206,2]
[362717145,1748405969441,-500.0,0.00015206,2]
[362717146,1748405969464,-500.0,0.00015206,2]
[362717147,1748405969487,-462.62852767,0.00015206,2]
[362717148,1748405976156,9999.83038575,0.00014,2]
[362717149,1748405997332,-152.0,0.00014337,2]
[362717150,1748406000098,-706.16424829,0.00014337,2]
[362717152,1748406003749,-181.86573826,0.00014337,2]
[362717154,1748406006441,-159.807577,0.00014337,2]
[362717157,1748406009601,-295.14074908,0.00014337,2]
[362717159,1748406014675,-263.22628436,0.00014337,2]
[362717160,1748406017522,-152.00925092,0.00014337,2]
[362717161,1748406021490,-253.96030046,0.0001418,2]
[362717163,1748406023603,-340.74030046,0.0001418,2]
[362717165,1748406025087,-155.25152251,0.0001418,2]
[362717166,1748406029444,-253.46366682,0.0001418,2]
[362717168,1748406031697,-258.82654172,0.0001418,2]
[362717169,1748406038817,-262.40209256,0.00014179,2]
[362717170,1748406045180,-282.52145698,0.00014178,2]
[362717172,1748406170086,-164.33969954,0.00014169,2]
[362717173,1748406172126,5000.0,0.00014051,2]
[362717174,1748406187521,5000.0,0.00014051,2]
[362717175,1748406202617,5000.0,0.00014051,2]
[362717177,1748406217799,5000.0,0.00014051,2]
[362717178,1748406221963,210.0314613,0.00013233,2]
[362717179,1748406233346,5000.0,0.00014051,2]
[362717181,1748406245160,-204.20060795,0.00014169,2]
[362717183,1748406249348,229.714927,0.00013699,2]
[362717184,1748406249881,5000.0,0.00014051,2]
[362717185,1748406265288,5000.0,0.00014051,2]
[362717187,1748406281689,3531.35877705,0.00014051,2]
[362717188,1748406311411,313.94113085,0.00014051,2]
[362717192,1748406425176,-196.12434353,0.00014078,2]
[362717205,1748406427574,196.12434353,0.00014051,2]
[362717207,1748406470144,-2.9469147,0.00014078,2]
[362717208,1748406470167,-188.41772303,0.00014078,2]
[362717209,1748406471746,-22.98862758,0.00014078,2]
[362717210,1748406471769,-186.22730469,0.00014169,2]
[362717211,1748406474410,-264.38810894,0.00014169,2]
[362717212,1748406486657,664.96867894,0.00014051,2]
[362717215,1748406599914,1142.713923,0.00013699,2]
[362717216,1748406630950,320.0,0.00021918,30]
[362717318,1748406638394,-164.90024098,0.00014076,2]
[362717320,1748406638404,-164.90024098,0.00014077,2]
[362717322,1748406638415,-164.90024098,0.00014077,2]
[362717324,1748406638424,-174.55142315,0.00014169,2]
[362717326,1748406638433,-313.54514828,0.00014176,2]
[362717603,1748406641229,-80.7919216,0.00014176,2]
[362717817,1748406643439,-300.0,0.00014175,2]
[362717819,1748406643449,-105.66293012,0.00014176,2]
[362717821,1748406643458,-16.17679109,0.00014176,2]
[362718137,1748406648131,-0.41490207,0.00014176,2]
[362718138,1748406648143,-483.40830684,0.00014176,2]
[362718139,1748406648153,-223.3146239,0.00014176,2]
[362718140,1748406648162,-500.0,0.00014176,2]
[362718141,1748406648172,-500.0,0.00014176,2]
[362718142,1748406648182,-500.0,0.00014176,2]
[362718143,1748406648192,-133.17708905,0.00014176,2]
[362718144,1748406651790,597.72,0.00012329,2]
[362718145,1748406720928,3684.7244244,0.00014051,2]
[362718146,1748406737221,530.5066883,0.00013178,2]
[362718147,1748406770259,-184.98055674,0.00014079,2]
[362718148,1748406770282,-300.0,0.00014175,2]
[362718149,1748406770306,-366.82291095,0.00014176,2]
[362718150,1748406770329,-419.86553735,0.00014176,2]
[362718151,1748406770352,-500.0,0.00014176,2]
[362718152,1748406770375,-500.0,0.00014176,2]
[362718153,1748406770397,-500.0,0.00014176,2]
[362718154,1748406770420,-500.0,0.00014176,2]
[362718155,1748406770442,-500.0,0.00014176,2]
[362718156,1748406770465,-500.0,0.00014176,2]
[362718157,1748406770487,-500.0,0.00014176,2]
[362718158,1748406770682,-500.0,0.00014176,2]
[362718159,1748406770710,-500.0,0.00014176,2]
[362718160,1748406770732,-500.0,0.00014176,2]
[362718161,1748406770755,-500.0,0.00014176,2]
[362718162,1748406770777,-500.0,0.00014176,2]
[362718163,1748406770799,-500.0,0.00014176,2]
[362718164,1748406770821,-500.0,0.00014176,2]
[362718165,1748406770842,-500.0,0.00014176,2]
[362718166,1748406770865,-500.0,0.00014176,2]
[362718167,1748406770887,-500.0,0.00014176,2]
[362718168,1748406770910,-403.98512237,0.00014176,2]
[362718169,1748406770931,-500.0,0.00014176,2]
[362718170,1748406770953,-500.0,0.00014176,2]
[362718171,1748406770976,-500.0,0.00014176,2]
[362718172,1748406770999,-500.0,0.00014176,2]
[362718173,1748406771021,-500.0,0.00014176,2]
[362718174,1748406771041,-300.0,0.00014176,2]
[362718175,1748406771062,-300.0,0.00014176,2]
[362718176,1748406771081,-300.0,0.00014176,2]
[362718177,1748406771102,-300.0,0.00014176,2]
[362718178,1748406771123,-1200.0,0.00014176,2]
[362718179,1748406771144,-151.0,0.00014179,2]
[362718180,1748406771165,-151.0,0.00014179,2]
[362718181,1748406771186,-823.987901,0.00014179,2]
[362718182,1748406771208,-273.635415,0.00014179,2]
[362718183,1748406771229,-823.987901,0.00014179,2]
[362718184,1748406771251,-273.635415,0.00014179,2]
[362718185,1748406771271,-151.0,0.00014179,2]
[362718186,1748406771292,-151.0,0.00014179,2]
[362718187,1748406771312,-151.0,0.00014179,2]
[362718188,1748406771333,-500.0,0.00014179,2]
[362718189,1748406771354,-500.0,0.00014179,2]
[362718190,1748406771381,-500.0,0.00014179,2]
[362718191,1748406771403,-832.20445628,0.00014179,2]
[362718192,1748406771424,-500.0,0.00014179,2]
[362718193,1748406771445,-500.0,0.00014179,2]
[362718194,1748406771467,-832.20445628,0.00014179,2]
[362718195,1748406771489,-832.20445628,0.00014179,2]
[362718196,1748406771511,-500.0,0.00014179,2]
[362718197,1748406771532,-832.20445628,0.00014179,2]
[362718198,1748406771554,-500.0,0.00014179,2]
[362718199,1748406771577,-832.20445628,0.00014179,2]
[362718200,1748406771599,-832.20445628,0.00014179,2]
[362718201,1748406771621,-500.0,0.00014179,2]
[362718202,1748406771642,-500.0,0.00014179,2]
[362718203,1748406771664,-500.0,0.00014179,2]
[362718204,1748406771686,-832.20445628,0.00014179,2]
[362718205,1748406771714,-832.20445628,0.00014179,2]
[362718206,1748406771739,-832.20445628,0.00014179,2]
[362718207,1748406771760,-500.0,0.00014179,2]
[362718208,1748406771784,-832.20445628,0.00014179,2]
[362718209,1748406771805,-500.0,0.00014179,2]
[362718210,1748406771828,-832.20445628,0.00014179,2]
[362718211,1748406771850,-832.20445628,0.00014179,2]
[362718212,1748406771872,-500.0,0.00014179,2]
[362718213,1748406771894,-832.20445628,0.00014179,2]
[362718214,1748406771917,-575.03160586,0.00014179,2]
[362718215,1748406771939,-832.20445628,0.00014179,2]
[362718216,1748406771960,-832.20445628,0.00014179,2]
[362718217,1748406771982,-620.30912539,0.00014179,2]
[362718218,1748406772003,-832.20445628,0.00014179,2]
[362718219,1748406772024,-500.0,0.00014179,2]
[362718220,1748406772046,-832.20445628,0.00014179,2]
[362718221,1748406772068,-832.20445628,0.00014179,2]
[362718222,1748406772091,-832.20445628,0.00014179,2]
[362718223,1748406772115,-832.20445628,0.00014179,2]
[362718224,1748406772137,-5809.82962279,0.00014179,2]
[362718225,1748406772159,-500.0,0.00014179,2]
[362718226,1748406772180,-5809.82962279,0.00014179,2]
[362718227,1748406772202,-5809.82962279,0.00014179,2]
[362718228,1748406772223,-500.0,0.00014179,2]
[362718229,1748406772245,-500.0,0.00014179,2]
[362718230,1748406772268,-5809.82962279,0.00014179,2]
[362718231,1748406772291,-5809.82962279,0.00014179,2]
[362718232,1748406772313,-5809.82962279,0.00014179,2]
[362718233,1748406772337,-585.0,0.00014179,2]
[362718234,1748406772359,-5809.82962279,0.00014179,2]
[362718235,1748406772381,-5809.82962279,0.00014179,2]
[362718236,1748406772403,-5809.82962279,0.00014179,2]
[362718237,1748406772424,-151.0,0.0001418,2]
[362718238,1748406772445,-15608.20277863,0.0001418,2]
[362718239,1748406772474,38128.6383755,0.00013179,2]
[362718254,1748406838862,5000.0,0.00014051,2]
[362718257,1748406856996,200.72377031,0.00013976,2]
[362718258,1748406868607,10000.0,0.00013651,2]
[362718259,1748406905411,-300.0,0.00014174,2]
[362718260,1748406905434,-200.0,0.00014174,2]
[362718266,1748407032772,187.2474435,0.00013319,2]
[362718267,1748407053999,1232.80356458,0.000139,2]
[362718268,1748407090641,24900.0,0.00013346,2]
[362718272,1748407326212,176.90516677,0.00013891,2]
[362718273,1748407334143,218.22918,0.00013699,2]
[362718275,1748407412701,943.06580866,0.0001369,2]
[362718732,1748407679545,1500.0,0.0002191,30]
[362718733,1748407696057,2857.31411141,0.00024658,120]
[362718734,1748407759049,1000.0,0.00024649,120]
[362718820,1748407832873,-398.14251646,0.00014068,2]
[362718822,1748407832882,-676.59914835,0.0001407,2]
[362718824,1748407832894,-1429.3771879,0.0001407,2]
[362718827,1748407832904,-500.0,0.00014167,2]
[362718830,1748407832913,-1498.7373495,0.00014167,2]
[362718833,1748407832923,-1498.7373495,0.00014167,2]
[362718836,1748407832931,-500.0,0.00014167,2]
[362718839,1748407832941,-573.1481131,0.00014167,2]
[362718843,1748407832969,-925.5892364,0.00014167,2]
[362718845,1748407832979,-500.0,0.00014167,2]
[362718847,1748407832989,-1498.7373495,0.00014167,2]
[362718849,1748407832998,-500.0,0.00014167,2]
[362718851,1748407833007,-1498.7373495,0.00014167,2]
[362718853,1748407833016,-500.0,0.00014167,2]
[362718855,1748407833026,-500.0,0.00014167,2]
[362718857,1748407833035,-500.0,0.00014167,2]
[362718858,1748407833049,-500.0,0.00014167,2]
[362718860,1748407833058,-378.96386779,0.00014167,2]
[362718862,1748407833067,-1498.7373495,0.00014167,2]
[362718864,1748407833077,-500.0,0.00014167,2]
[362718866,1748407833088,-500.0,0.00014167,2]
[362718868,1748407833097,-1498.7373495,0.00014167,2]
[362718871,1748407833107,-1498.7373495,0.00014167,2]
[362718873,1748407833116,-500.0,0.00014167,2]
[362718874,1748407833128,-1498.7373495,0.00014167,2]
[362718876,1748407833137,-300.0,0.00014167,2]
[362718878,1748407833147,-300.0,0.00014167,2]
[362718880,1748407833157,-300.0,0.00014167,2]
[362718882,1748407833168,-300.0,0.00014167,2]
[362718883,1748407833179,-1200.0,0.00014167,2]
[362718884,1748407833190,-500.0,0.00014168,2]
[362718886,1748407833200,-500.0,0.00014168,2]
[362718888,1748407833209,-500.0,0.00014168,2]
[362718890,1748407833218,-500.0,0.00014168,2]
[362718891,1748407833228,-500.0,0.00014168,2]
[362718892,1748407833238,-291.65711498,0.00014168,2]
[362718957,1748407840670,-500.0,0.00014167,2]
[362718960,1748407840680,-500.0,0.00014167,2]
[362718962,1748407840689,-500.0,0.00014167,2]
[362718964,1748407840698,-500.0,0.00014167,2]
[362718966,1748407840707,-500.0,0.00014167,2]
[362718968,1748407840717,-440.35596558,0.00014167,2]
[362718970,1748407840727,-500.0,0.00014167,2]
[362718972,1748407840736,-500.0,0.00014167,2]
[362718974,1748407840746,-500.0,0.00014167,2]
[362718976,1748407840755,-500.0,0.00014167,2]
[362718978,1748407840764,-500.0,0.00014167,2]
[362718980,1748407840774,-500.0,0.00014167,2]
[362718982,1748407840783,-500.0,0.00014167,2]
[362718984,1748407840792,-500.0,0.00014167,2]
[362718986,1748407840801,-500.0,0.00014167,2]
[362718988,1748407840810,-500.0,0.00014167,2]
[362718990,1748407840819,-500.0,0.00014167,2]
[362718992,1748407840828,-500.0,0.00014167,2]
[362718994,1748407840838,-500.0,0.00014167,2]
[362718996,1748407840847,-500.0,0.00014167,2]
[362718998,1748407840856,-500.0,0.00014167,2]
[362719000,1748407840866,-500.0,0.00014167,2]
[362719002,1748407840875,-500.0,0.00014167,2]
[362719004,1748407840885,-500.0,0.00014167,2]
[362719007,1748407840894,-500.0,0.00014167,2]